bitfinex-derivatives/quotes_BTCF0:USTF0_20250411
["timestamp","ask_amount","ask_price","bid_price","bid_amount"]
[1744330732699,0.1882514,79584.0,79583.0,1.6886244]
[1744330734108,0.0625,79584.0,79583.0,1.6886244]
[1744330734500,0.1882514,79584.0,79583.0,1.6886244]
[1744330734806,0.0625,79584.0,79583.0,1.6886244]
[1744330735719,0.07193669,79584.0,79583.0,1.6886244]
[1744330737209,0.0625,79584.0,79583.0,1.6886244]
[1744330737904,0.1882514,79584.0,79583.0,1.6886244]
[1744330738110,0.1882514,79584.0,79583.0,0.1886244]
[1744330738609,0.0628787,79581.0,79578.0,1.5]
[1744330738912,0.1881577,79580.0,79579.0,0.1257593]
[1744330739313,0.0624,79580.0,79579.0,0.1257593]
[1744330739515,0.04071462,79580.0,79579.0,0.1257593]
[1744330739703,0.04071462,79580.0,79579.0,0.1881593]
[1744330741921,0.04071462,79580.0,79579.0,0.5489593]
[1744330742118,0.18796122,79585.0,79584.0,0.1257514]
[1744330742321,0.18796122,79585.0,79584.0,0.4865514]
[1744330742522,0.18796122,79585.0,79584.0,0.1257514]
[1744330742910,0.18796122,79585.0,79584.0,0.1878514]
[1744330744021,0.22458575,79593.0,79591.0,0.1257403]
[1744330744419,0.22458575,79593.0,79592.0,0.1257387]
[1744330744726,0.0326,79605.0,79594.0,0.1257356]
[1744330744727,0.18816201,79595.0,79594.0,0.1257356]
[1744330745211,0.22517418,79602.0,79601.0,0.1257245]
[1744330745408,0.22477418,79602.0,79601.0,0.4865245]
[1744330745718,0.0303,79613.0,79612.0,0.1257071]
[1744330745917,0.1560056,79613.0,79612.0,0.1257071]
[1744330746820,0.0628537,79612.0,79605.0,0.06304693]
[1744330747021,0.4236573,79608.0,79607.0,0.1885643]
[1744330747518,0.3608,79608.0,79607.0,0.1885643]
[1744330747724,0.3608,79608.0,79607.0,0.2515643]
[1744330748321,0.3608,79608.0,79607.0,0.0628556]
[1744330748720,0.3608,79608.0,79607.0,0.0931556]
[1744330749428,0.3608,79608.0,79607.0,0.0628556]
[1744330749822,0.4865135,79608.0,79607.0,0.0628556]
[1744330750024,0.3608,79608.0,79607.0,0.0628556]
[1744330750228,0.3608,79608.0,79607.0,0.1284556]
[1744330751825,0.0322,79611.0,79610.0,0.1257103]
[1744330752330,0.14494602,79611.0,79610.0,0.1257103]
[1744330752719,0.14494602,79611.0,79610.0,0.1891103]
[1744330755025,0.14494602,79611.0,79610.0,0.1586103]
[1744330755833,0.0322,79611.0,79610.0,0.1586103]
[1744330756131,0.0322,79611.0,79610.0,0.1901103]
[1744330757021,0.393,79611.0,79610.0,0.1901103]
[1744330757221,0.1257166,79606.0,79605.0,0.00978096]
[1744330757424,0.1257166,79606.0,79605.0,0.13549916]
[1744330758126,0.1582166,79606.0,79605.0,0.13549916]
[1744330758327,0.16768522,79606.0,79605.0,0.13549916]
[1744330758728,0.16768522,79606.0,79605.0,0.00978096]
[1744330759134,0.16768522,79606.0,79605.0,0.13549916]
[1744330760235,0.20018522,79606.0,79605.0,0.13549916]
[1744330763136,0.20018522,79606.0,79605.0,0.00978096]
[1744330763337,0.0628679,79594.0,79593.0,0.1257372]
[1744330763535,0.0628739,79587.0,79579.0,0.48028144]
[1744330763832,0.0301,79586.0,79583.0,0.0628758]
[1744330764038,0.0604,79586.0,79585.0,0.1257498]
[1744330764240,0.0303,79586.0,79585.0,0.1257498]
[1744330764639,0.03982762,79586.0,79585.0,0.1910498]
[1744330765045,0.03982762,79586.0,79585.0,0.1581498]
[1744330765840,0.03982762,79586.0,79582.0,0.0628772]
[1744330766139,0.03982762,79586.0,79567.0,0.0628887]
[1744330766140,0.1257577,79580.0,79570.0,0.45507852]
[1744330766342,0.1257814,79565.0,79564.0,0.30074793]
[1744330766541,0.1257814,79565.0,79564.0,0.42653093]
[1744330767047,0.13530902,79565.0,79564.0,0.42653093]
[1744330768244,0.13530902,79565.0,79564.0,0.43572954]
[1744330768443,0.00952762,79565.0,79564.0,0.43572954]
[1744330768639,0.13530902,79565.0,79564.0,0.43572954]
[1744330768840,0.1257814,79565.0,79564.0,0.43572954]
[1744330771052,0.1257814,79565.0,79564.0,0.13498161]
[1744330772451,0.1257814,79565.0,79564.0,0.00919861]
[1744330772747,0.0628929,79563.0,79562.0,0.0628928]
[1744330773151,0.0628929,79563.0,79555.0,0.00050279]
[1744330773152,0.0628969,79558.0,79555.0,0.00050279]
[1744330773351,0.4865956,79556.0,79555.0,0.12629839]
[1744330773742,0.5491956,79556.0,79555.0,0.12629839]
[1744330775556,0.5491956,79556.0,79555.0,0.13576322]
[1744330775949,0.1258225,79539.0,79538.0,0.0321]
[1744330776157,0.4237119,79539.0,79538.0,0.1258241]
[1744330776354,0.4237119,79539.0,79538.0,1.6258241]
[1744330776957,0.3608,79539.0,79538.0,1.6258241]
[1744330777156,0.1258273,79536.0,79535.0,0.23456402]
[1744330777853,0.1258273,79536.0,79535.0,0.36039282]
[1744330778653,0.4866273,79536.0,79535.0,0.23456402]
[1744330778957,0.4866273,79536.0,79535.0,0.22519543]
[1744330779160,0.4866273,79536.0,79535.0,0.35102423]
[1744330779457,0.49703714,79536.0,79535.0,0.35102423]
[1744330780060,0.3608,79536.0,79535.0,0.35102423]
[1744330780256,0.3608,79536.0,79535.0,0.36067601]
[1744330780451,0.4866273,79536.0,79535.0,0.13548058]
[1744330780965,0.1258336,79532.0,79531.0,0.18925195]
[1744330781159,0.0317,79535.0,79534.0,0.1258304]
[1744330781454,0.3608,79551.0,79545.0,0.125813]
[1744330781652,0.0317,79549.0,79545.0,0.125813]
[1744330781854,0.0305,79556.0,79545.0,0.125813]
[1744330782055,0.0622,79556.0,79545.0,0.486613]
[1744330782257,0.0622,79556.0,79545.0,0.550713]
[1744330782459,0.423,79556.0,79545.0,0.550713]
[1744330782857,0.423,79556.0,79555.0,0.1257972]
[1744330782858,0.0317,79556.0,79555.0,0.1257972]
[1744330783663,0.0317,79556.0,79555.0,0.1898972]
[1744330784957,0.04148575,79556.0,79555.0,0.1898972]
[1744330785763,0.40228575,79556.0,79517.0,0.4169]
[1744330785959,0.40228575,79556.0,79549.0,0.1887012]
[1744330785960,0.1258123,79550.0,79549.0,0.1887012]
[1744330786157,0.1258023,79552.0,79551.0,0.0629011]
[1744330786362,0.1258023,79552.0,79551.0,1.5629011]
[1744330786764,0.1356067,79552.0,79551.0,1.5629011]
[1744330788364,0.0098044,79552.0,79551.0,1.5629011]
[1744330788571,0.1356064,79552.0,79551.0,1.5629011]
[1744330790369,0.4964064,79552.0,79551.0,1.5629011]
[1744330792469,0.4964064,79552.0,79538.0,0.12601165]
[1744330792470,0.1258225,79539.0,79538.0,0.12601165]
[1744330792660,0.4866225,79539.0,79538.0,0.12601165]
[1744330792859,0.4866225,79539.0,79538.0,1.62601165]
[1744330793072,0.3608,79539.0,79538.0,1.62601165]
[1744330793370,0.3608,79539.0,79538.0,1.65731165]
[1744330793571,0.4866225,79539.0,79538.0,1.65731165]
[1744330793763,0.4964269,79539.0,79538.0,1.65731165]
[1744330794967,0.3706044,79539.0,79538.0,1.65731165]
[1744330795162,0.0098044,79539.0,79538.0,1.65731165]
[1744330795359,0.0098044,79539.0,79538.0,1.68851165]
[1744330795563,0.0427044,79539.0,79538.0,1.68851165]
[1744330796270,0.0742044,79539.0,79538.0,1.68851165]
[1744330796471,0.0742044,79539.0,79538.0,1.65731165]
[1744330796672,0.0742044,79539.0,79538.0,1.62601165]
[1744330797271,0.2000269,79539.0,79538.0,0.12601165]
[1744330797471,0.2326269,79539.0,79538.0,0.12601165]
[1744330797967,0.2326269,79539.0,79538.0,0.00018855]
[1744330798368,0.5934269,79539.0,79538.0,0.00018855]
[1744330800165,0.1258336,79532.0,79531.0,0.00050295]
[1744330800361,0.4866336,79532.0,79531.0,0.12633815]
[1744330800570,0.496438,79532.0,79531.0,0.12633815]
[1744330800967,0.4348044,79532.0,79531.0,0.13600812]
[1744330801176,0.560638,79532.0,79531.0,0.13600812]
[1744330802072,0.199838,79532.0,79531.0,0.13600812]
[1744330802264,0.0098044,79532.0,79531.0,0.13600812]
[1744330802466,0.0098044,79532.0,79531.0,0.16660812]
[1744330802866,0.135638,79532.0,79531.0,0.16660812]
[1744330803178,0.135638,79532.0,79531.0,0.13600812]
[1744330803473,0.1258336,79532.0,79531.0,0.13600812]
[1744330804176,0.13534236,79532.0,79531.0,0.13600812]
[1744330804774,0.13534236,79532.0,79531.0,0.01017292]
[1744330804966,0.13534236,79532.0,79531.0,0.00050295]
[1744330805268,0.13534236,79532.0,79531.0,0.12633815]
[1744330805467,0.19934236,79532.0,79531.0,0.00050295]
[1744330807575,0.1258557,79518.0,79517.0,0.35105273]
[1744330807875,0.4866557,79518.0,79517.0,0.35105273]
[1744330808373,0.49616446,79518.0,79517.0,0.35105273]
[1744330808674,0.56256446,79518.0,79517.0,0.35105273]
[1744330808862,0.56256446,79518.0,79517.0,0.36038297]
[1744330809870,0.56256446,79518.0,79517.0,0.13518754]
[1744330812466,0.43670876,79518.0,79517.0,0.13518754]
[1744330812779,0.07590876,79518.0,79517.0,0.13518754]
[1744330812975,0.00950876,79518.0,79517.0,0.13518754]
[1744330813185,0.00950876,79518.0,79517.0,0.16688754]
[1744330813479,0.00950876,79522.0,79521.0,0.125851]
[1744330814181,0.07150876,79522.0,79521.0,0.125851]
[1744330814873,0.19735816,79522.0,79521.0,0.125851]
[1744330815778,0.03990876,79522.0,79521.0,0.125851]
[1744330816381,0.03990876,79522.0,79521.0,0.189551]
[1744330816573,0.16575816,79522.0,79521.0,0.189551]
[1744330816777,0.13535816,79522.0,79521.0,0.189551]
[1744330817473,0.00950876,79522.0,79521.0,0.189551]
[1744330818176,0.00950876,79523.0,79522.0,0.1258494]
[1744330818873,0.00950876,79523.0,79522.0,0.4866494]
[1744330819177,0.00018855,79525.0,79524.0,0.1258462]
[1744330819382,0.00018855,79525.0,79524.0,0.4866462]
[1744330819573,0.15032803,79534.0,79528.0,0.1258399]
[1744330819773,0.15032803,79534.0,79528.0,1.6258399]
[1744330820474,0.15032803,79534.0,79533.0,0.125832]
[1744330820672,0.15032803,79534.0,79533.0,0.486632]
[1744330821774,0.00018855,79541.0,79540.0,0.1258209]
[1744330822082,0.00980688,79541.0,79540.0,0.4866209]
[1744330822574,0.0629154,79534.0,79518.0,0.3608]
[1744330822770,0.13545153,79533.0,79532.0,0.1258336]
[1744330823378,0.00961833,79533.0,79532.0,0.1258336]
[1744330824277,0.00961833,79539.0,79538.0,0.1258241]
[1744330824575,0.13544083,79539.0,79538.0,0.1258241]
[1744330824781,0.07491833,79539.0,79538.0,0.1258241]
[1744330824979,0.43571833,79539.0,79538.0,0.1258241]
[1744330825578,0.07491833,79539.0,79538.0,0.1258241]
[1744330826983,0.00961833,79539.0,79538.0,0.1258241]
[1744330827184,0.00961833,79540.0,79539.0,0.1258225]
[1744330827484,0.15032803,79547.0,79543.0,0.0629079]
[1744330827695,0.15032803,79547.0,79546.0,0.4866114]
[1744330828277,0.15032803,79547.0,79546.0,1.9866114]
[1744330828676,0.18302803,79554.0,79553.0,0.1258004]
[1744330828874,0.18321658,79554.0,79553.0,0.4866004]
[1744330829587,0.18321658,79554.0,79553.0,0.1258004]
[1744330829886,0.33941538,79554.0,79553.0,0.1258004]
[1744330830182,0.21361658,79554.0,79553.0,0.1258004]
[1744330832788,0.18321658,79554.0,79553.0,0.1258004]
[1744330832988,0.03288855,79554.0,79553.0,0.1258004]
[1744330833188,0.15032803,79570.0,79569.0,0.1257751]
[1744330833892,0.18674493,79580.0,79572.0,0.1257703]
[1744330834088,0.18674493,79580.0,79577.0,0.1257624]
[1744330834481,0.3612,79578.0,79577.0,0.1257624]
[1744330835196,0.0004,79578.0,79577.0,0.13498524]
[1744330835382,0.0004,79578.0,79577.0,0.16878524]
[1744330835991,0.0004,79578.0,79577.0,1.66878524]
[1744330837388,0.0369,79578.0,79577.0,1.70398524]
[1744330840987,0.00018855,79585.0,79581.0,0.0628779]
[1744330841194,0.00018855,79585.0,79584.0,0.1257514]
[1744330841585,0.036,79588.0,79587.0,0.1257466]
[1744330842392,0.036,79588.0,79587.0,0.1618466]
[1744330843190,0.1617451,79588.0,79587.0,0.1618466]
[1744330843493,0.1617451,79588.0,79587.0,0.1257466]
[1744330843694,0.036,79588.0,79587.0,0.1257466]
[1744330844396,0.1971451,79588.0,79587.0,0.1257466]
[1744330844598,0.1342731,79588.0,79584.0,1.5]
[1744330844788,0.1257498,79585.0,79584.0,1.5]
[1744330845389,0.1955498,79585.0,79584.0,1.5]
[1744330845595,0.1257545,79582.0,79581.0,0.1257555]
[1744330846097,0.1257545,79582.0,79581.0,1.6257555]
[1744330848193,0.0628813,79577.0,79570.0,0.00018855]
[1744330848385,0.4865719,79571.0,79570.0,0.00018855]
[1744330848590,0.4865719,79571.0,79570.0,1.62596205]
[1744330849195,0.5560719,79571.0,79570.0,1.62596205]
[1744330849897,0.0695,79571.0,79570.0,1.62596205]
[1744330850093,0.0695,79571.0,79570.0,1.63551223]
[1744330850892,0.0695,79571.0,79570.0,0.13551223]
[1744330851094,0.5560719,79571.0,79570.0,0.13551223]
[1744330851307,0.1257956,79556.0,79555.0,0.00050279]
[1744330851601,0.0628933,79562.0,79559.0,0.1257877]
[1744330851799,0.1257906,79560.0,79559.0,0.1886825]
[1744330852191,0.1983906,79560.0,79559.0,0.0628948]
[1744330853787,0.1983906,79560.0,79559.0,0.07227739]
[1744330854195,0.0726,79560.0,79559.0,0.07227739]
[1744330854395,0.0726,79560.0,79559.0,0.46807739]
[1744330854599,0.0726,79560.0,79559.0,0.50227739]
[1744330855189,0.0726,79560.0,79559.0,0.14147739]
[1744330856992,0.0369,79570.0,79569.0,0.1257751]
[1744330857709,0.5234735,79570.0,79569.0,0.1257751]
[1744330858608,0.1257751,79569.0,79568.0,1.5]
[1744330858804,0.1949751,79569.0,79568.0,1.5]
[1744330859106,0.1949751,79569.0,79568.0,1.6257767]
[1744330859509,0.20441375,79569.0,79568.0,1.6257767]
[1744330860202,0.20441375,79569.0,79568.0,0.1257767]
[1744330860807,0.20441375,79569.0,79568.0,1.6257767]
[1744330861206,0.1949751,79569.0,79568.0,1.6257767]
[1744330864009,0.0692,79569.0,79568.0,1.6257767]
[1744330864402,0.3608,79570.0,79569.0,0.1257751]
[1744330864711,0.3608,79570.0,79569.0,0.1962751]
[1744330865712,0.0343,79572.0,79571.0,0.1257719]
[1744330865912,0.0352,79576.0,79575.0,0.1257656]
[1744330866109,0.0343,79577.0,79576.0,0.125764]
[1744330866413,0.00018855,79578.0,79577.0,0.1257624]
[1744330867402,0.18674493,79587.0,79586.0,0.1257482]
[1744330867611,0.18674493,79587.0,79586.0,0.5793882]
[1744330868116,0.22529281,79594.0,79593.0,0.1257372]
[1744330868411,0.3608,79618.0,79593.0,0.1257372]
[1744330868412,0.3608,79618.0,79594.0,0.0628673]
[1744330868611,0.0711,79625.0,79614.0,0.125704]
[1744330868802,0.0004,79626.0,79625.0,0.1256866]
[1744330869002,0.0365,79638.0,79637.0,0.1256677]
[1744330869205,0.0359,79648.0,79647.0,0.1256519]
[1744330869410,0.5588503,79648.0,79647.0,0.1256519]
[1744330869910,0.0724,79648.0,79647.0,0.1256519]
[1744330870217,0.0004,79650.0,79649.0,0.1256487]
[1744330870906,0.0004,79650.0,79649.0,1.6256487]
[1744330873418,0.0004,79650.0,79649.0,1.7184487]
[1744330874706,0.1260472,79650.0,79649.0,1.5]
[1744330874906,0.1626472,79650.0,79649.0,1.5]
[1744330875112,0.5234472,79650.0,79649.0,1.5]
[1744330876310,0.1256614,79641.0,79640.0,0.00018843]
[1744330876506,0.4864614,79641.0,79640.0,0.00018843]
[1744330876915,0.4864614,79641.0,79640.0,1.50018843]
[1744330877115,0.5576614,79641.0,79640.0,1.50018843]
[1744330877314,0.5576614,79641.0,79640.0,0.00018843]
[1744330877517,0.1256882,79624.0,79620.0,0.0928]
[1744330877719,0.1256882,79624.0,79623.0,0.1256898]
[1744330878021,0.4864882,79624.0,79623.0,1.6256898]
[1744330878419,0.5561882,79624.0,79623.0,1.6256898]
[1744330879220,0.5561882,79624.0,79623.0,1.63531686]
[1744330879811,0.5561882,79624.0,79623.0,1.50962706]
[1744330880210,0.5561882,79624.0,79623.0,1.5]
[1744330880817,0.1256992,79617.0,79616.0,0.00018843]
[1744330881019,0.4864992,79617.0,79616.0,0.00018843]
[1744330881520,0.4864992,79617.0,79616.0,1.50018843]
[1744330881713,0.5210992,79617.0,79616.0,1.50018843]
[1744330882523,0.7710992,79617.0,79616.0,0.00018843]
[1744330883020,0.5210992,79617.0,79616.0,0.00018843]
[1744330888316,0.8818992,79617.0,79616.0,0.00018843]
[1744330902744,0.4864992,79617.0,79616.0,0.00018843]
[1744330903639,0.4864992,79617.0,79593.0,0.0347]
[1744330903640,0.1257072,79604.0,79593.0,0.0347]
[1744330903840,0.8473072,79604.0,79603.0,9e-08]
[1744330904535,0.9187072,79604.0,79603.0,9e-08]
[1744330906437,0.793,79604.0,79596.0,2e-08]
[1744330906637,0.4865183,79597.0,79596.0,2e-08]
[1744330906837,0.5816783,79597.0,79596.0,2e-08]
[1744330907434,0.6514783,79597.0,79596.0,2e-08]
[1744330910143,0.66426085,79597.0,79596.0,2e-08]
[1744330916349,0.56910085,79597.0,79596.0,2e-08]
[1744330917050,0.1257672,79566.0,79537.0,0.4169]
[1744330917250,0.1257672,79566.0,79565.0,9e-08]
[1744330917455,0.1257736,79562.0,79561.0,0.12096848]
[1744330917777,0.4865736,79562.0,79561.0,0.12096848]
[1744330919549,0.1257831,79556.0,79555.0,0.00050279]
[1744330919744,0.4865831,79556.0,79555.0,0.00050279]
[1744330919950,0.4865831,79556.0,79555.0,0.36180563]
[1744330922556,0.4865831,79556.0,79555.0,0.43440563]
[1744330926256,0.3608,79566.0,79555.0,0.68440563]
[1744330926452,0.3608,79566.0,79558.0,0.0628899]
[1744330926656,0.4865672,79566.0,79565.0,0.36130284]
[1744330926953,0.3608,79566.0,79565.0,0.48707164]
[1744330927258,0.12595093,79569.0,79568.0,0.1257641]
[1744330927449,0.12595093,79569.0,79568.0,0.48706694]
[1744330927648,0.00018843,79569.0,79568.0,0.48706694]
[1744330927851,0.12595093,79569.0,79568.0,0.52396694]
[1744330928555,0.48675093,79569.0,79568.0,0.0369]
[1744330928745,0.36098843,79569.0,79568.0,0.36130284]
[1744330928946,0.36098843,79569.0,79568.0,0.48706694]
[1744330929151,0.48675093,79569.0,79568.0,0.48706694]
[1744330930259,0.36098843,79569.0,79568.0,0.36130284]
[1744330930461,0.36098843,79569.0,79568.0,0.48706694]
[1744330932364,0.48675093,79569.0,79568.0,0.36130284]
[1744330932549,0.48675093,79569.0,79568.0,0.48706694]
[1744330933156,0.00018843,79569.0,79568.0,0.48706694]
[1744330933661,0.3608,79593.0,79582.0,0.1257404]
[1744330933861,0.0376,79588.0,79587.0,0.1257341]
[1744330934165,0.1633325,79588.0,79587.0,0.1257341]
[1744330934360,0.1633325,79588.0,79587.0,0.12623694]
[1744330935254,0.062865,79590.0,79587.0,0.12623694]
[1744330935255,0.1629286,79592.0,79588.0,0.0628662]
[1744330935466,0.1629286,79592.0,79591.0,0.12623054]
[1744330935663,0.1629286,79592.0,79591.0,0.00050284]
[1744330935857,0.1257309,79589.0,79588.0,0.0628662]
[1744330936055,0.1257309,79589.0,79588.0,0.1885978]
[1744330936356,0.1257309,79589.0,79588.0,0.06336904]
[1744330936957,0.1257309,79589.0,79588.0,0.00050284]
[1744330937662,0.1257309,79589.0,79588.0,0.12623534]
[1744330938167,0.0376,79592.0,79591.0,0.1257277]
[1744330938464,0.0376,79592.0,79591.0,0.12623054]
[1744330938760,0.0376,79592.0,79591.0,0.14342416]
[1744330939263,0.1633262,79592.0,79591.0,0.14342416]
[1744330939665,0.5241262,79592.0,79591.0,0.14395133]
[1744330939867,0.5241262,79592.0,79591.0,0.12623054]
[1744330940070,0.1633262,79592.0,79591.0,0.12623054]
[1744330942070,0.0376,79592.0,79591.0,0.12623054]
[1744330942472,0.1633262,79592.0,79591.0,0.14421118]
[1744330945374,0.1633262,79592.0,79591.0,0.12623054]
[1744330945669,0.1633262,79592.0,79591.0,0.14440319]
[1744330946263,0.1633262,79592.0,79591.0,0.14444307]
[1744330946471,0.1633262,79592.0,79591.0,0.14444269]
[1744330946667,0.0376,79592.0,79591.0,0.1444427]
[1744330946876,8.559e-05,79602.0,79601.0,0.1257119]
[1744330947064,0.11240611,79608.0,79605.0,0.0628522]
[1744330947369,0.11240611,79608.0,79607.0,0.1257025]
[1744330947576,0.11240611,79608.0,79607.0,0.14391466]
[1744330947873,0.11240611,79608.0,79607.0,0.21791466]
[1744330948073,0.18699843,79619.0,79612.0,0.0628467]
[1744330948269,0.0004,79626.0,79624.0,0.1256756]
[1744330948466,0.0004,79626.0,79624.0,0.14388776]
[1744330948467,0.3491168,79625.0,79624.0,0.14388776]
[1744330948662,0.3839168,79625.0,79624.0,0.14388776]
[1744330948867,0.4218168,79625.0,79624.0,0.16035649]
[1744330949466,0.4218168,79625.0,79624.0,0.1256756]
[1744330949666,0.7826168,79625.0,79624.0,0.1256756]
[1744330950779,0.1983741,79625.0,79624.0,0.1256756]
[1744330950984,0.0727,79625.0,79624.0,0.13500382]
[1744330951169,0.1256531,79639.0,79627.0,0.0628348]
[1744330951370,0.3608,79653.0,79648.0,0.1256362]
[1744330951371,0.0628182,79649.0,79648.0,0.1256362]
[1744330952072,0.0628182,79649.0,79646.0,0.0628199]
[1744330952073,0.1256393,79647.0,79646.0,0.0628199]
[1744330952275,0.125652,79639.0,79638.0,0.0628263]
[1744330953575,0.125663,79633.0,79632.0,0.0628309]
[1744330953774,0.0628269,79638.0,79637.0,0.1884779]
[1744330953968,0.0628269,79638.0,79637.0,0.27030773]
[1744330954370,0.038,79639.0,79638.0,0.1256535]
[1744330954678,0.163652,79639.0,79638.0,0.21623319]
[1744330954866,0.038,79639.0,79638.0,0.57703319]
[1744330955676,0.163652,79639.0,79638.0,0.57703319]
[1744330955983,0.163652,79639.0,79638.0,0.21623319]
[1744330957186,0.038,79639.0,79638.0,0.21623319]
[1744330957879,0.163652,79639.0,79638.0,0.21613319]
[1744330958783,0.038,79639.0,79638.0,0.57693319]
[1744330958976,0.1635462,79643.0,79642.0,0.1256472]
[1744330959172,0.1635462,79643.0,79642.0,0.14452689]
[1744330959380,0.0379,79643.0,79642.0,0.14488274]
[1744330959581,0.00018843,79646.0,79645.0,0.1256425]
[1744330959981,0.00018843,79646.0,79645.0,0.14487562]
[1744330960378,0.12582933,79646.0,79645.0,0.1256425]
[1744330961280,0.12582933,79646.0,79645.0,0.14477633]
[1744330961886,0.48662933,79646.0,79645.0,0.01913383]
[1744330962087,0.0628246,79641.0,79639.0,0.1256505]
[1744330962284,0.0628246,79641.0,79640.0,0.14463186]
[1744330962690,0.0628246,79641.0,79640.0,1.64463186]
[1744330965490,0.0628246,79641.0,79640.0,1.51898146]
[1744330965783,0.0628246,79641.0,79640.0,0.01898146]
[1744330966183,0.0975246,79641.0,79640.0,0.01898146]
[1744330966683,0.125663,79632.0,79631.0,0.00018843]
[1744330966882,0.486463,79632.0,79631.0,0.01854749]
[1744330967386,0.125663,79632.0,79631.0,0.00018843]
[1744330967585,0.486463,79632.0,79631.0,0.00018843]
[1744330967888,0.486463,79632.0,79631.0,0.12585303]
[1744330970788,0.486463,79632.0,79631.0,0.00018843]
[1744330972295,0.486463,79632.0,79631.0,0.01737118]
[1744330973188,0.736463,79632.0,79631.0,3e-08]
[1744330974687,0.74903761,79632.0,79631.0,3e-08]
[1744330974887,1.16713761,79632.0,79631.0,3e-08]
[1744330976401,1.1765462,79632.0,79631.0,3e-08]
[1744330976894,1.2709462,79632.0,79631.0,3e-08]
[1744330977298,1.1765462,79632.0,79631.0,3e-08]
[1744330977505,0.49903761,79632.0,79631.0,3e-08]
[1744330980305,0.74903761,79632.0,79631.0,3e-08]
[1744330980696,0.78553761,79632.0,79631.0,3e-08]
[1744330981406,0.87997761,79632.0,79631.0,3e-08]
[1744330981599,0.62997761,79632.0,79631.0,3e-08]
[1744330982201,0.53553761,79632.0,79631.0,3e-08]
[1744330982396,0.62997761,79632.0,79631.0,3e-08]
[1744330982796,0.53553761,79632.0,79631.0,3e-08]
[1744330983198,0.522963,79632.0,79631.0,3e-08]
[1744330984707,0.772963,79632.0,79631.0,3e-08]
[1744330985200,0.522963,79632.0,79631.0,3e-08]
[1744330985405,1.285503,79632.0,79631.0,3e-08]
[1744330985800,1.191063,79632.0,79631.0,3e-08]
[1744330986001,1.15984,79632.0,79603.0,0.00050249]
[1744330986207,0.4865072,79604.0,79603.0,0.00050249]
[1744330986807,0.49883324,79604.0,79603.0,9e-08]
[1744330987014,0.56883324,79604.0,79603.0,9e-08]
[1744330989008,0.5565072,79604.0,79603.0,9e-08]
[1744330991709,0.56881876,79604.0,79603.0,9e-08]
[1744330997017,0.4865072,79604.0,79603.0,9e-08]
[1744330997515,0.1257072,79604.0,79603.0,9e-08]
[1744330997718,0.4865072,79604.0,79603.0,9e-08]
[1744330999917,0.1257183,79597.0,79596.0,0.00018843]
[1744331000111,0.4865183,79597.0,79596.0,0.00018843]
[1744331000618,0.4865183,79597.0,79596.0,3e-08]
[1744331001306,0.49609413,79597.0,79596.0,3e-08]
[1744331002616,0.4865183,79597.0,79596.0,3e-08]
[1744331005714,0.1257183,79597.0,79596.0,3e-08]
[1744331005918,0.1257183,79597.0,79596.0,0.12571943]
[1744331006219,0.1257183,79597.0,79596.0,0.73651943]
[1744331006518,0.0628575,79599.0,79598.0,0.1257167]
[1744331006714,0.0628525,79606.0,79600.0,0.1257099]
[1744331006917,0.1257183,79597.0,79596.0,3e-08]
[1744331007626,0.1257183,79597.0,79596.0,0.12571983]
[1744331008821,0.0628575,79599.0,79598.0,0.1257167]
[1744331009010,0.1257183,79597.0,79596.0,0.12571923]
[1744331009422,0.1257183,79597.0,79596.0,3e-08]
[1744331009816,0.1257183,79597.0,79596.0,0.12571983]
[1744331010420,0.1257183,79597.0,79596.0,0.48651983]
[1744331010921,0.0628512,79607.0,79603.0,0.1257088]
[1744331011219,0.4865072,79604.0,79603.0,0.1257088]
[1744331011420,0.25042608,79609.0,79603.0,0.1257088]
[1744331011421,0.18757588,79609.0,79608.0,0.1257009]
[1744331011623,0.1257025,79607.0,79606.0,0.0628513]
[1744331012121,0.1257072,79604.0,79603.0,0.3608]
[1744331012509,0.1257183,79597.0,79596.0,0.36080003]
[1744331012715,0.1257183,79597.0,79596.0,3e-08]
[1744331014412,0.1257183,79597.0,79596.0,0.12571983]
[1744331015325,0.1257168,79598.0,79597.0,0.1885735]
[1744331015517,0.0628569,79600.0,79599.0,0.1257151]
[1744331020132,0.0628569,79600.0,79599.0,0.2014151]
[1744331021433,0.0628569,79600.0,79599.0,0.0757]
[1744331022031,0.0628569,79600.0,79599.0,0.2014151]
[1744331022228,0.0628569,79600.0,79599.0,0.2384151]
[1744331022432,0.1257044,79606.0,79605.0,0.1257041]
[1744331023046,0.1257044,79606.0,79605.0,0.2003041]
[1744331023948,0.1257044,79606.0,79605.0,0.0746]
[1744331024153,0.4865044,79606.0,79605.0,0.0746]
[1744331024658,0.1257183,79597.0,79589.0,0.1257296]
[1744331024948,0.4865183,79597.0,79595.0,0.0388]
[1744331026038,0.1257183,79597.0,79596.0,0.03750003]
[1744331026241,0.4865183,79597.0,79596.0,0.03750003]
[1744331026948,0.4865183,79597.0,79596.0,3e-08]
[1744331027251,0.5235183,79597.0,79596.0,3e-08]
[1744331030442,0.3608,79597.0,79596.0,3e-08]
[1744331030643,0.4865183,79597.0,79596.0,0.12571983]
[1744331031653,0.4865183,79597.0,79596.0,0.20531983]
[1744331031850,0.4865183,79597.0,79596.0,0.07960003]
[1744331032158,0.4865183,79597.0,79596.0,3e-08]
[1744331032454,0.5235183,79597.0,79596.0,3e-08]
[1744331038455,0.1627183,79597.0,79596.0,3e-08]
[1744331038654,0.5235183,79597.0,79596.0,3e-08]
[1744331045160,0.8843183,79597.0,79596.0,3e-08]
[1744331045350,0.0628677,79587.0,79579.0,0.00050264]
[1744331045550,0.125772,79563.0,79562.0,0.44688254]
[1744331045854,0.486572,79563.0,79562.0,0.44688254]
[1744331046156,0.486572,79563.0,79546.0,0.0769]
[1744331046157,0.1257831,79556.0,79546.0,0.0769]
[1744331046364,0.4865831,79556.0,79546.0,0.0769]
[1744331046664,0.4865831,79556.0,79548.0,0.00018843]
[1744331047159,0.5666831,79556.0,79548.0,0.00018843]
[1744331048355,0.5666831,79556.0,79549.0,0.1257939]
[1744331048665,0.5666831,79556.0,79552.0,0.1257887]
[1744331049360,0.5666831,79556.0,79550.0,0.2013917]
[1744331049658,0.1651831,79556.0,79550.0,0.0756]
[1744331049859,0.1651831,79556.0,79555.0,0.12628739]
[1744331050060,0.1257775,79560.0,79559.0,0.1257767]
[1744331050764,0.1630775,79560.0,79559.0,0.1257767]
[1744331050962,0.1257831,79557.0,79556.0,0.1257821]
[1744331051456,0.1257831,79556.0,79555.0,0.12628739]
[1744331052252,0.1257831,79556.0,79555.0,0.00050279]
[1744331052458,0.1641831,79556.0,79555.0,0.00050279]
[1744331052858,0.1257831,79556.0,79555.0,0.00050279]
[1744331053258,0.1257831,79556.0,79555.0,0.12628739]
[1744331054763,0.1257831,79556.0,79555.0,0.00050279]